fUSD/lending_fUSD_20260107
["ID","MTS","AMOUNT","RATE_DAILY","PERIOD"]
[400778173,1767826223016,10000.01,0.00013794,2]
[400778174,1767826223878,-176.13498878,0.0001333,2]
[400778175,1767826225737,-427.51910702,0.0001333,2]
[400778176,1767826228366,-195.0,0.00013212,2]
[400778177,1767826231241,-51.52,0.00013212,2]
[400778178,1767826231264,-372.34501122,0.0001333,2]
[400778193,1767826232110,-1871.52089298,0.0001333,2]
[400778194,1767826232120,-2314.66407649,0.00013794,2]
[400778195,1767826232132,-456.48307216,0.00013794,2]
[400778200,1767826233428,-300.0,0.00013794,2]
[400778201,1767826235758,-300.0,0.00013793,2]
[400778221,1767826238083,-200.0,0.00013793,2]
[400778223,1767826238094,-185.1992936,0.00013793,2]
[400778224,1767826238104,-174.64193414,0.00013793,2]
[400778225,1767826238114,-462.32652612,0.00013793,2]
[400778231,1767826238124,-500.0,0.00013793,2]
[400778232,1767826238571,-500.0,0.00013793,2]
[400778233,1767826238582,-472.29162792,0.00013793,2]
[400778234,1767826238591,-16847.3892193,0.00013794,2]
[400778235,1767826238603,-26342.14227649,0.00013794,2]
[400778237,1767826238614,-413.87661525,0.00013794,2]
[400778239,1767826238631,-1072.75722982,0.00013794,2]
[400778244,1767826238676,-857811.87683617,0.00013794,2]
[400778246,1767826238686,-21908.06259769,0.00013987,2]
[400778248,1767826238695,-9999.99,0.00013987,2]
[400778250,1767826238705,-57097.28,0.00013987,2]
[400778252,1767826238715,-299.99,0.00013987,2]
[400778254,1767826238725,-9999.99,0.00013987,2]
[400778256,1767826238734,-3174.75,0.00013987,2]
[400778258,1767826238743,-150.99,0.00013987,2]
[400778260,1767826238752,-42324.09,0.00013987,2]
[400778262,1767826238762,-4999.99,0.00013987,2]
[400778264,1767826238772,-150.99,0.00013987,2]
[400778266,1767826238783,-3687.07,0.00013987,2]
[400778268,1767826238793,-9999.99,0.00013987,2]
[400778270,1767826238802,-1465.39,0.00013987,2]
[400778272,1767826238811,-1178.51,0.00013987,2]
[400778274,1767826238821,-500.0,0.00013987,2]
[400778276,1767826238830,-200.0,0.00013987,2]
[400778278,1767826238839,-151.0,0.00013987,2]
[400778280,1767826238849,-151.0,0.00013987,2]
[400778282,1767826238859,-151.0,0.00013987,2]
[400778284,1767826238869,-151.0,0.00013987,2]
[400778286,1767826238879,-151.0,0.00013987,2]
[400778288,1767826238888,-151.0,0.00013987,2]
[400778290,1767826238897,-500.0,0.00013987,2]
[400778292,1767826238907,-151.0,0.00013987,2]
[400778294,1767826238917,-151.0,0.00013987,2]
[400778296,1767826238926,-500.0,0.00013987,2]
[400778298,1767826238936,-151.0,0.00013987,2]
[400778300,1767826238945,-288.27990329,0.00013987,2]
[400778302,1767826238955,-151.0,0.00013987,2]
[400778304,1767826238964,-151.0,0.00013987,2]
[400778306,1767826238974,-151.0,0.00013987,2]
[400778308,1767826238983,-151.0,0.00013987,2]
[400778310,1767826238993,-151.0,0.00013987,2]
[400778312,1767826239002,-200.0,0.00013987,2]
[400778313,1767826239011,-151.0,0.00013987,2]
[400778314,1767826239020,-151.0,0.00013987,2]
[400778315,1767826239030,-173.97408759,0.00013987,2]
[400778316,1767826239039,-151.0,0.00013987,2]
[400778317,1767826239048,-151.0,0.00013987,2]
[400778318,1767826239057,-151.0,0.00013987,2]
[400778319,1767826239067,-151.0,0.00013987,2]
[400778320,1767826239075,-151.0,0.00013987,2]
[400778321,1767826239085,-151.0,0.00013987,2]
[400778322,1767826239094,-151.0,0.00013987,2]
[400778323,1767826239103,-151.0,0.00013987,2]
[400778324,1767826239112,-151.0,0.00013987,2]
[400778326,1767826239121,-151.0,0.00013987,2]
[400778327,1767826239130,-151.0,0.00013987,2]
[400778329,1767826239139,-200.0,0.00013987,2]
[400778332,1767826239149,-1511.05,0.00013987,2]
[400778334,1767826239158,-413631.7001935,0.00013988,2]
[400778336,1767826239168,-151.0,0.00013992,2]
[400778338,1767826239177,-500.0,0.00013994,2]
[400778340,1767826239187,-500.0,0.00013994,2]
[400778342,1767826239196,-500.0,0.00013994,2]
[400778344,1767826239205,-500.0,0.00013994,2]
[400778345,1767826239214,-500.0,0.00013994,2]
[400778348,1767826239224,-450.63605817,0.00013994,2]
[400778349,1767826239235,-500.0,0.00013994,2]
[400778352,1767826239244,-500.0,0.00013994,2]
[400778354,1767826239255,-500.0,0.00013994,2]
[400778356,1767826239265,-500.0,0.00013994,2]
[400778358,1767826239274,-500.0,0.00013994,2]
[400778360,1767826239285,-500.0,0.00013994,2]
[400778362,1767826239294,-500.0,0.00013994,2]
[400778364,1767826239303,-500.0,0.00013994,2]
[400778366,1767826239312,-500.0,0.00013994,2]
[400778368,1767826239322,-524.88501728,0.00013994,2]
[400778370,1767826239331,-1000.0,0.00013995,2]
[400778371,1767826239340,-150.0,0.00014013,2]
[400778374,1767826239350,-500.0,0.00014013,2]
[400778376,1767826239359,-150.0,0.00014013,2]
[400778377,1767826239368,-500.0,0.00014013,2]
[400778379,1767826239377,-150.0,0.00014013,2]
[400778381,1767826239391,-500.0,0.00014013,2]
[400778383,1767826239400,-500.0,0.00014013,2]
[400778385,1767826239409,-150.0,0.00014013,2]
[400778387,1767826239418,-150.0,0.00014013,2]
[400778388,1767826239427,-463.0,0.00014013,2]
[400778390,1767826239436,-500.0,0.00014013,2]
[400778392,1767826239446,-150.0,0.00014035,2]
[400778394,1767826239455,-500.0,0.00014035,2]
[400778396,1767826239464,-726.0,0.00014035,2]
[400778398,1767826239473,-150.0,0.00014035,2]
[400778400,1767826239482,-1280.0,0.00014035,2]
[400778402,1767826239491,-150.0,0.00014035,2]
[400778404,1767826239500,-150.0,0.00014035,2]
[400778406,1767826239510,-500.0,0.00014035,2]
[400778408,1767826239519,-150.0,0.00014035,2]
[400778410,1767826239529,-151.66178001,0.00014035,2]
[400778412,1767826239538,-500.0,0.00014035,2]
[400778414,1767826239548,-150.0,0.00014035,2]
[400778416,1767826239557,-500.0,0.00014035,2]
[400778418,1767826239566,-150.0,0.00014068,2]
[400778420,1767826239576,-500.0,0.00014068,2]
[400778422,1767826239585,-150.0,0.00014068,2]
[400778424,1767826239594,-500.0,0.00014068,2]
[400778426,1767826239604,-500.0,0.00014068,2]
[400778428,1767826239613,-463.0,0.00014068,2]
[400778430,1767826239626,-500.0,0.00014068,2]
[400778432,1767826239635,-500.0,0.00014068,2]
[400778434,1767826239646,-500.0,0.0001409,2]
[400778436,1767826239655,-726.0,0.0001409,2]
[400778438,1767826239664,-150.0,0.0001409,2]
[400778440,1767826239674,-1280.0,0.0001409,2]
[400778442,1767826239684,-210.07522356,0.0001409,2]
[400778444,1767826239693,-150.0,0.0001409,2]
[400778446,1767826239703,-500.0,0.0001409,2]
[400778448,1767826239712,-150.0,0.0001409,2]
[400778450,1767826239722,-500.0,0.0001409,2]
[400778451,1767826239732,-150.0,0.0001409,2]
[400778453,1767826239742,-500.0,0.0001409,2]
[400778455,1767826239751,-500.0,0.00014094,2]
[400778458,1767826239761,-500.0,0.00014094,2]
[400778460,1767826239772,-500.0,0.00014094,2]
[400778461,1767826239782,-500.0,0.00014094,2]
[400778463,1767826239791,-500.0,0.00014094,2]
[400778465,1767826239800,-534.92861577,0.00014094,2]
[400778467,1767826239809,-500.0,0.00014094,2]
[400778469,1767826239819,-500.0,0.00014094,2]
[400778471,1767826239828,-500.0,0.00014094,2]
[400778473,1767826239837,-500.0,0.00014094,2]
[400778475,1767826239846,-300.32189939,0.00014094,2]
[400778477,1767826239855,-500.0,0.00014094,2]
[400778479,1767826239864,-500.0,0.00014094,2]
[400778481,1767826239873,-508.99338834,0.00014094,2]
[400778483,1767826239883,-166.66,0.00014117,2]
[400778485,1767826239892,-150.0,0.00014123,2]
[400778487,1767826239901,-500.0,0.00014123,2]
[400778489,1767826239911,-150.0,0.00014123,2]
[400778491,1767826239920,-194.00411142,0.00014123,2]
[400778493,1767826239929,-463.0,0.00014123,2]
[400778495,1767826239939,-500.0,0.00014123,2]
[400778497,1767826239948,-500.0,0.00014123,2]
[400778499,1767826239957,-200.0,0.00014127,2]
[400778501,1767826239966,-500.0,0.00014145,2]
[400778503,1767826239975,-726.0,0.00014145,2]
[400778505,1767826239985,-150.0,0.00014145,2]
[400778507,1767826239994,-1280.0,0.00014145,2]
[400778509,1767826240004,-150.0,0.00014145,2]
[400778511,1767826240013,-500.0,0.00014145,2]
[400778513,1767826240022,-150.0,0.00014145,2]
[400778515,1767826240032,-500.0,0.00014145,2]
[400778517,1767826240041,-150.0,0.00014145,2]
[400778519,1767826240050,-500.0,0.00014145,2]
[400778521,1767826240060,-150.0,0.00014177,2]
[400778523,1767826240069,-500.0,0.00014177,2]
[400778525,1767826240078,-150.0,0.00014177,2]
[400778527,1767826240088,-463.0,0.00014177,2]
[400778529,1767826240098,-500.0,0.00014177,2]
[400778531,1767826240107,-500.0,0.00014177,2]
[400778533,1767826240117,-500.0,0.00014196,2]
[400778535,1767826240128,-524.2180077,0.00014196,2]
[400778537,1767826240137,-500.0,0.00014196,2]
[400778539,1767826240147,-500.0,0.00014196,2]
[400778541,1767826240156,-500.0,0.00014196,2]
[400778543,1767826240165,-500.0,0.00014196,2]
[400778545,1767826240174,-500.0,0.00014196,2]
[400778547,1767826240184,-612.17704163,0.00014196,2]
[400778549,1767826240193,-500.0,0.00014196,2]
[400778551,1767826240203,-500.0,0.00014196,2]
[400778553,1767826240213,-500.0,0.00014196,2]
[400778555,1767826240226,-500.0,0.00014196,2]
[400778557,1767826240235,-500.0,0.00014196,2]
[400778559,1767826240245,-500.0,0.00014196,2]
[400778561,1767826240254,-636.9475183,0.00014196,2]
[400778563,1767826240264,-500.0,0.00014196,2]
[400778565,1767826240274,-500.0,0.00014196,2]
[400778567,1767826240284,-500.0,0.00014196,2]
[400778569,1767826240295,-500.0,0.00014196,2]
[400778571,1767826240304,-500.0,0.00014196,2]
[400778573,1767826240313,-500.0,0.00014196,2]
[400778575,1767826240322,-500.0,0.00014196,2]
[400778577,1767826240332,-500.0,0.00014196,2]
[400778579,1767826240341,-500.0,0.00014196,2]
[400778581,1767826240350,-500.0,0.00014196,2]
[400778583,1767826240361,-500.0,0.00014196,2]
[400778585,1767826240371,-500.0,0.00014196,2]
[400778587,1767826240380,-500.0,0.00014196,2]
[400778589,1767826240390,-500.0,0.00014196,2]
[400778591,1767826240398,-500.0,0.00014196,2]
[400778593,1767826240408,-500.0,0.00014196,2]
[400778595,1767826240417,-500.0,0.00014196,2]
[400778597,1767826240427,-500.0,0.00014196,2]
[400778599,1767826240436,-500.0,0.00014196,2]
[400778600,1767826240445,-500.0,0.00014196,2]
[400778602,1767826240455,-500.0,0.00014196,2]
[400778604,1767826240464,-500.0,0.00014196,2]
[400778606,1767826240473,-283.51547018,0.00014196,2]
[400778608,1767826240483,-500.0,0.00014196,2]
[400778610,1767826240492,-500.0,0.00014199,2]
[400778612,1767826240501,-726.0,0.00014199,2]
[400778614,1767826240511,-150.0,0.00014199,2]
[400778616,1767826240520,-1280.0,0.00014199,2]
[400778618,1767826240530,-200.0,0.00014199,2]
[400778620,1767826240539,-500.0,0.00014199,2]
[400778622,1767826240548,-150.0,0.00014199,2]
[400778624,1767826240558,-500.0,0.00014199,2]
[400778626,1767826240568,-150.0,0.00014199,2]
[400778628,1767826240577,-500.0,0.00014199,2]
[400778630,1767826240587,-95325.90153785,0.00014209,2]
[400778632,1767826240596,-200.0,0.00014232,2]
[400778634,1767826240605,-500.0,0.00014232,2]
[400778636,1767826240615,-150.0,0.00014232,2]
[400778638,1767826240625,-463.0,0.00014232,2]
[400778640,1767826240635,-519.25199485,0.00014232,2]
[400778642,1767826240644,-500.0,0.00014232,2]
[400778644,1767826240653,-1005.77442601,0.0001424,2]
[400778646,1767826240664,-11169.8,0.00014249,2]
[400778648,1767826240673,-500.0,0.00014254,2]
[400778650,1767826240683,-726.0,0.00014254,2]
[400778652,1767826240693,-150.0,0.00014254,2]
[400778654,1767826240702,-1280.0,0.00014254,2]
[400778656,1767826240712,-500.0,0.00014254,2]
[400778658,1767826240721,-179.16326783,0.00014254,2]
[400778660,1767826240731,-500.0,0.00014254,2]
[400778662,1767826240740,-285.51728142,0.00014254,2]
[400778664,1767826240750,-500.0,0.00014254,2]
[400778666,1767826240759,-1511.05,0.00014261,2]
[400778668,1767826240768,-500.0,0.00014268,2]
[400778670,1767826240778,-200.0,0.00014268,2]
[400778672,1767826240788,-500.0,0.00014287,2]
[400778674,1767826240797,-250.0,0.00014287,2]
[400778676,1767826240806,-463.0,0.00014287,2]
[400778678,1767826240816,-500.0,0.00014287,2]
[400778680,1767826240825,-500.0,0.00014309,2]
[400778682,1767826240834,-726.0,0.00014309,2]
[400778684,1767826240843,-250.0,0.00014309,2]
[400778687,1767826240853,-1280.0,0.00014309,2]
[400778689,1767826240863,-335.1109073,0.00014309,2]
[400778691,1767826240873,-500.0,0.00014309,2]
[400778693,1767826240882,-606.19487819,0.00014309,2]
[400778695,1767826240892,-9803.09035237,0.00014333,2]
[400778697,1767826240901,-16095.3520159,0.00014337,2]
[400778699,1767826240910,-200.0,0.00014338,2]
[400778701,1767826240919,-500.0,0.00014342,2]
[400778703,1767826240928,-463.0,0.00014342,2]
[400778705,1767826240938,-491.58151617,0.00014342,2]
[400778707,1767826240949,-726.0,0.00014364,2]
[400778709,1767826240958,-1280.0,0.00014364,2]
[400778711,1767826240968,-500.0,0.00014364,2]
[400778713,1767826240977,-1130.67,0.00014384,2]
[400778715,1767826240988,-1561.8,0.00014392,2]
[400778717,1767826240998,-500.0,0.00014397,2]
[400778719,1767826241007,-463.0,0.00014397,2]
[400778721,1767826241017,-600.0,0.00014397,2]
[400778723,1767826241026,-200.0,0.00014411,2]
[400778725,1767826241037,-726.0,0.00014419,2]
[400778727,1767826241047,-1280.0,0.00014419,2]
[400778729,1767826241056,-500.0,0.00014419,2]
[400778731,1767826241065,-500.0,0.00014451,2]
[400778733,1767826241074,-463.0,0.00014451,2]
[400778735,1767826241083,-685.52616572,0.00014465,2]
[400778737,1767826241092,-1280.0,0.00014473,2]
[400778739,1767826241101,-726.0,0.00014473,2]
[400778741,1767826241111,-500.0,0.00014473,2]
[400778743,1767826241120,-500.0,0.00014506,2]
[400778745,1767826241129,-463.0,0.00014506,2]
[400778747,1767826241138,-500.0,0.00014519,2]
[400778749,1767826241147,-1280.0,0.00014528,2]
[400778751,1767826241156,-726.0,0.00014528,2]
[400778753,1767826241166,-500.0,0.00014528,2]
[400778755,1767826241175,-500.0,0.00014535,2]
[400778757,1767826241185,-200.0,0.00014535,2]
[400778759,1767826241193,-1511.05,0.00014535,2]
[400778761,1767826241203,-1562.21,0.00014542,2]
[400778763,1767826241212,-500.0,0.00014542,2]
[400778765,1767826241221,-500.0,0.00014553,2]
[400778767,1767826241234,-200.0,0.00014555,2]
[400778769,1767826241243,-500.0,0.00014561,2]
[400778771,1767826241252,-463.0,0.00014561,2]
[400778773,1767826241262,-1280.0,0.00014583,2]
[400778775,1767826241271,-726.0,0.00014583,2]
[400778777,1767826241282,-500.0,0.00014583,2]
[400778779,1767826241291,-417.98,0.00014597,2]
[400778781,1767826241301,-500.0,0.00014616,2]
[400778783,1767826241311,-463.0,0.00014616,2]
[400778785,1767826241320,-1280.0,0.00014638,2]
[400778787,1767826241330,-726.0,0.00014638,2]
[400778789,1767826241339,-500.0,0.00014638,2]
[400778791,1767826241349,-500.0,0.00014671,2]
[400778793,1767826241358,-463.0,0.00014671,2]
[400778795,1767826241368,-1280.0,0.00014693,2]
[400778797,1767826241377,-726.0,0.00014693,2]
[400778799,1767826241386,-500.0,0.00014693,2]
[400778801,1767826241396,-500.0,0.00014725,2]
[400778804,1767826241406,-463.0,0.00014725,2]
[400778805,1767826241416,-500.0,0.00014736,2]
[400778807,1767826241425,-500.0,0.00014736,2]
[400778809,1767826241434,-500.0,0.00014736,2]
[400778811,1767826241443,-1280.0,0.00014747,2]
[400778813,1767826241453,-726.0,0.00014747,2]
[400778815,1767826241462,-500.0,0.00014747,2]
[400778817,1767826241471,-9803.09035237,0.00014779,2]
[400778820,1767826241482,-500.0,0.0001478,2]
[400778821,1767826241491,-463.0,0.0001478,2]
[400778823,1767826241502,-16095.3520159,0.00014783,2]
[400778825,1767826241512,-1760.04988539,0.00014794,2]
[400778827,1767826241521,-500.0,0.00014799,2]
[400778829,1767826241531,-500.0,0.00014799,2]
[400778832,1767826241541,-150.0,0.00014799,2]
[400778834,1767826241550,-150.0,0.00014799,2]
[400778836,1767826241560,-150.0,0.00014799,2]
[400778837,1767826241569,-150.0,0.00014799,2]
[400778839,1767826241579,-178.03708143,0.00014799,2]
[400778842,1767826241589,-174.06741652,0.00014799,2]
[400778844,1767826241598,-1280.0,0.00014802,2]
[400778845,1767826241607,-726.0,0.00014802,2]
[400778848,1767826241618,-500.0,0.00014802,2]
[400778849,1767826241627,-1511.05,0.00014808,2]
[400778851,1767826241637,-500.0,0.00014816,2]
[400778853,1767826241647,-500.0,0.00014835,2]
[400778855,1767826241657,-463.0,0.00014835,2]
[400778857,1767826241666,-1005.77442601,0.0001485,2]
[400778859,1767826241675,-500.0,0.00014854,2]
[400778861,1767826241685,-500.0,0.00014854,2]
[400778863,1767826241695,-150.0,0.00014854,2]
[400778865,1767826241704,-150.0,0.00014854,2]
[400778868,1767826241715,-271.23482998,0.00014854,2]
[400778869,1767826241724,-281.40504741,0.00014854,2]
[400778871,1767826241734,-1280.0,0.00014857,2]
[400778873,1767826241743,-726.0,0.00014857,2]
[400778876,1767826241753,-500.0,0.00014857,2]
[400778878,1767826241763,-151.0,0.00014869,2]
[400778880,1767826241772,-151.0,0.00014869,2]
[400778881,1767826241782,-151.0,0.0001487,2]
[400778883,1767826241791,-151.0,0.0001487,2]
[400778886,1767826241801,-614.90501403,0.00014879,2]
[400778888,1767826241811,-560.79963653,0.0001489,2]
[400778889,1767826241820,-463.0,0.0001489,2]
[400778892,1767826241830,-151.0,0.00014898,2]
[400778894,1767826241840,-151.0,0.00014898,2]
[400778895,1767826241849,-151.0,0.00014898,2]
[400778897,1767826241858,-151.0,0.00014898,2]
[400778899,1767826241868,-500.0,0.00014909,2]
[400778901,1767826241877,-231.23799714,0.00014909,2]
[400778903,1767826241887,-204.51452503,0.00014909,2]
[400778906,1767826241896,-150.0,0.00014909,2]
[400778908,1767826241906,-1280.0,0.00014912,2]
[400778909,1767826241916,-726.0,0.00014912,2]
[400778911,1767826241926,-406.89851448,0.00014912,2]
[400778913,1767826241935,-241.8761735,0.00014942,2]
[400778916,1767826241945,-463.0,0.00014945,2]
[400778918,1767826241954,-500.0,0.00014963,2]
[400778920,1767826241964,-150.0,0.00014963,2]
[400778922,1767826241973,-1280.0,0.00014967,2]
[400778924,1767826241983,-726.0,0.00014967,2]
[400778926,1767826241992,-155.2,0.00014984,2]
[400778928,1767826242001,-463.0,0.00014999,2]
[400778930,1767826242012,-255.0,0.00015017,2]
[400778931,1767826242022,-272.01341084,0.00015018,2]
[400778934,1767826242032,-249.62704522,0.00015018,2]
[400778936,1767826242042,-1280.0,0.00015021,2]
[400778937,1767826242051,-726.0,0.00015021,2]
[400778939,1767826242061,-685.52616572,0.00015037,2]
[400778941,1767826242070,-463.0,0.00015054,2]
[400778943,1767826242079,-500.0,0.00015068,2]
[400778945,1767826242089,-1130.67,0.00015068,2]
[400778947,1767826242098,-169.74559645,0.00015073,2]
[400778949,1767826242107,-500.0,0.00015073,2]
[400778951,1767826242116,-411.91622264,0.00015073,2]
[400778953,1767826242126,-161.8794398,0.00015073,2]
[400778955,1767826242136,-556.0741427,0.00015073,2]
[400778957,1767826242145,-500.0,0.00015073,2]
[400778959,1767826242154,-502.16378022,0.00015073,2]
[400778961,1767826242163,-552.50710843,0.00015073,2]
[400778963,1767826242172,-500.0,0.00015073,2]
[400778965,1767826242181,-500.0,0.00015073,2]
[400778967,1767826242190,-536.66734105,0.00015073,2]
[400778969,1767826242199,-500.0,0.00015073,2]
[400778971,1767826242209,-500.0,0.00015073,2]
[400778973,1767826242218,-500.0,0.00015073,2]
[400778975,1767826242229,-500.0,0.00015073,2]
[400778977,1767826242239,-500.0,0.00015073,2]
[400778979,1767826242248,-500.0,0.00015073,2]
[400778981,1767826242257,-500.0,0.00015073,2]
[400778983,1767826242266,-500.0,0.00015073,2]
[400778985,1767826242275,-413.08976684,0.00015073,2]
[400778987,1767826242286,-500.0,0.00015073,2]
[400778989,1767826242297,-500.0,0.00015073,2]
[400778991,1767826242307,-500.0,0.00015073,2]
[400778993,1767826242317,-500.0,0.00015073,2]
[400778995,1767826242327,-500.0,0.00015073,2]
[400778997,1767826242336,-500.0,0.00015073,2]
[400778999,1767826242346,-500.0,0.00015073,2]
[400779001,1767826242355,-1280.0,0.00015076,2]
[400779003,1767826242364,-726.0,0.00015076,2]
[400779005,1767826242373,-11157.35,0.00015079,2]
[400779007,1767826242382,-1511.05,0.00015082,2]
[400779009,1767826242392,-500.0,0.00015083,2]
[400779011,1767826242401,-200.0,0.00015083,2]
[400779013,1767826242411,-463.0,0.00015109,2]
[400779015,1767826242420,-500.0,0.00015123,2]
[400779017,1767826242432,-1280.0,0.00015131,2]
[400779019,1767826242442,-726.0,0.00015131,2]
[400779020,1767826242452,-463.0,0.00015164,2]
[400779021,1767826242461,-195.0,0.00015175,2]
[400779022,1767826242473,-5000.0,0.00015175,2]
[400779023,1767826242482,-300.0,0.00015175,2]
[400779024,1767826242492,-195.0,0.00015175,2]
[400779025,1767826242501,-300.0,0.00015175,2]
[400779026,1767826242511,-500.0,0.00015178,2]
[400779027,1767826242520,-1280.0,0.00015186,2]
[400779028,1767826242532,-726.0,0.00015186,2]
[400779029,1767826242543,-463.0,0.00015218,2]
[400779030,1767826242552,-9803.09035237,0.00015225,2]
[400779052,1767826242803,-16095.3520159,0.00015228,2]
[400779055,1767826242813,-500.0,0.00015232,2]
[400779057,1767826242824,-1280.0,0.0001524,2]
[400779059,1767826242834,-726.0,0.0001524,2]
[400779061,1767826242844,-107.21294851,0.00015273,2]
[400779135,1767826243545,-364.78705149,0.00015273,2]
[400779137,1767826243555,-250.0,0.00015281,2]
[400779139,1767826243564,-2500.0,0.00015281,2]
[400779141,1767826243574,-195.0,0.00015281,2]
[400779143,1767826243584,-250.0,0.00015282,2]
[400779145,1767826243595,-500.0,0.00015287,2]
[400779147,1767826243605,-1286.2212164,0.00015295,2]
[400779150,1767826243615,-726.1858208,0.00015295,2]
[400779152,1767826243625,-500.0,0.00015315,2]
[400779154,1767826243635,-420.0,0.00015322,2]
[400779156,1767826243644,-420.0,0.00015322,2]
[400779159,1767826243655,-417.98,0.00015326,2]
[400779162,1767826243664,-521.47480439,0.00015342,2]
[400779164,1767826243674,-1511.05,0.00015356,2]
[400779166,1767826243684,-500.0,0.00015364,2]
[400779168,1767826243693,-500.0,0.00015364,2]
[400779170,1767826243703,-1680.0,0.00015384,2]
[400779172,1767826243712,-384.10059426,0.00015385,2]
[400779174,1767826243721,-300.0,0.00015385,2]
[400779176,1767826243732,-321.44238502,0.00015385,2]
[400779178,1767826243742,-1005.77442601,0.0001546,2]
[400779181,1767826243752,-685.52616572,0.0001561,2]
[400779183,1767826243761,-1029.13192156,0.00015621,2]
[400779186,1767826243771,-1000.0,0.00015621,2]
[400779189,1767826243781,-949.69083076,0.00015621,2]
[400779192,1767826243792,-1000.0,0.00015621,2]
[400779195,1767826243802,-1000.0,0.00015621,2]
[400779198,1767826243812,-1000.0,0.00015621,2]
[400779202,1767826243822,-1000.0,0.00015621,2]
[400779204,1767826243831,-1000.0,0.00015621,2]
[400779205,1767826243841,-1000.0,0.00015621,2]
[400779208,1767826243851,-1000.0,0.00015621,2]
[400779210,1767826243861,-1000.0,0.00015621,2]
[400779212,1767826243870,-1000.0,0.00015621,2]
[400779214,1767826243881,-1000.0,0.00015621,2]
[400779216,1767826243891,-500.73448024,0.00015621,2]
[400779218,1767826243900,-1128.37348131,0.00015621,2]
[400779220,1767826243910,-1009.96734995,0.00015621,2]
[400779222,1767826243919,-1511.05,0.0001563,2]
[400779224,1767826243929,-500.0,0.00015631,2]
[400779226,1767826243939,-309.8049795,0.00015631,2]
[400779228,1767826243948,-9803.09035237,0.00015671,2]
[400779230,1767826243958,-16095.3520159,0.00015673,2]
[400779232,1767826243968,-1130.67,0.00015753,2]
[400779234,1767826243977,-600.0,0.00015766,2]
[400779236,1767826243987,-1511.05,0.00015904,2]
[400779238,1767826243996,-1000.0,0.00015918,2]
[400779240,1767826244006,-787.35487633,0.00015956,2]
[400779242,1767826244016,-578.20924308,0.00015976,2]
[400779244,1767826244026,-500.0,0.00015976,2]
[400779247,1767826244037,-500.0,0.00015976,2]
[400779249,1767826244046,-500.0,0.00015976,2]
[400779251,1767826244056,-500.0,0.00015976,2]
[400779253,1767826244065,-500.0,0.00015976,2]
[400779255,1767826244075,-500.0,0.00015976,2]
[400779257,1767826244084,-500.0,0.00015976,2]
[400779259,1767826244093,-500.0,0.00015976,2]
[400779261,1767826244103,-500.0,0.00015976,2]
[400779263,1767826244112,-500.0,0.00015976,2]
[400779265,1767826244121,-500.0,0.00015976,2]
[400779267,1767826244130,-500.0,0.00015976,2]
[400779269,1767826244139,-500.0,0.00015976,2]
[400779271,1767826244149,-500.0,0.00015976,2]
[400779273,1767826244158,-574.12855637,0.00015976,2]
[400779275,1767826244168,-500.0,0.00015976,2]
[400779277,1767826244177,-500.0,0.00015976,2]